Cogmind - Beta 12 X6 @@@ ROGUE MODE // 2023.02.22 @ 14:50:40 // Winter2019/RPGLIKE Player: ArabianSandBoa Result: Destroyed by L-31 Rogue with Katana Performance ------------- Evolutions (2) 1000 Regions Visited (5) 1000 Robots Destroyed (60) 300 Value Destroyed (2170) 2170 Prototype IDs (34) 680 Alien Tech Used (0) 0 Bonus (434) 434 TOTAL SCORE: 5584 Bonus ------- High Alert Combat Kills 134 Aligned with FarCom 300 Cogmind --------- Core Integrity 0/600 Matter 282/300 Energy 111/275 System Corruption 2% Temperature Cool (19) Movement Rolling (110) Ox1 Location -8/Materials Parts ------- > --- POWER (1) -------- Deuterium Engine > --- PROPULSION (3) --- Compact Wheel Armored Wheel Improved Flight Unit > --- UTILITY (5) ------ Improved Terrain Scanner Advanced Targeting Computer Launcher Guidance Computer ECM Suite Hardened Light Armor Plating > --- WEAPON (3) ------- YOLO Cannon > --- INVENTORY (3) ---- Experimental Sensor Array Chronowheel Field Lobotomy Kit (5) Peak State ------------ > --- POWER ------------ Light Nuclear Core > --- PROPULSION ------- Improved Flight Unit Improved Flight Unit Improved Flight Unit > --- UTILITY ---------- Experimental Sensor Array Improved Terrain Scanner Launcher Guidance Computer ECM Suite > --- WEAPON ----------- YOLO Cannon Field Lobotomy Kit > --- INVENTORY -------- Chronowheel [Rating: 60] Favorites ----------- Power Light Nuclear Core Engine Ion Engine Power Core Light Nuclear Core Propulsion Improved Flight Unit Wheel Compact Wheel Flight Unit Improved Flight Unit Utility Improved Terrain Scanner Device Improved Terrain Scanner Processor Signal Interpreter Protection Hardened Light Armor Plating Weapon EM Shotgun Energy Gun EM Shotgun Energy Cannon YOLO Cannon Launcher Mini Grenade Launcher Special Weapon Field Lobotomy Kit Build | -11 -10 -10 -10 -9 -8 ------- Run | Jun Mat Min Exi Min Mat Slots Evolved 8 | 3 3 . . 1 1 Power . | . . . . . . Propulsion 2 | . 1 . . 1 . Utility 4 | 2 1 . . . 1 Weapon 2 | 1 1 . . . . Parts Attached 44 | 5 22 5 2 4 6 Power 6 | 1 3 1 . . 1 Engine 5 | 1 3 . . . 1 Core 1 | . . 1 . . . Reactor . | . . . . . . Propulsion 6 | 1 2 . . 1 2 Treads . | . . . . . . Leg . | . . . . . . Wheel 3 | 1 . . . . 2 Hover . | . . . . . . Flight 3 | . 2 . . 1 . Utility 11 | 2 3 1 1 2 2 Device 6 | 2 1 1 . 1 1 Storage . | . . . . . . Processor 4 | . 2 . 1 . 1 Hackware . | . . . . . . Protection 1 | . . . . 1 . Artifact . | . . . . . . Weapon 21 | 1 14 3 1 1 1 Energy Gun 14 | 1 11 2 . . . Energy Cannon 1 | . . . 1 . . Ballistic Gun . | . . . . . . Ballistic Cannon . | . . . . . . Launcher 5 | . 3 1 . . 1 Special Weapon 1 | . . . . 1 . Impact Weapon . | . . . . . . Slashing Weapon . | . . . . . . Piercing Weapon . | . . . . . . Special Melee Weapon . | . . . . . . Unidentified Prototypes 1 | . . 1 . . . Parts Lost 1 | . 1 . . . . Power . | . . . . . . Propulsion . | . . . . . . Utility . | . . . . . . Weapon 1 | . 1 . . . . Highest Loss Streak 1 | . 1 . . . . To Critical Strikes . | . . . . . . Average Slot Usage (%) 90 | . 86 99 92 89 84 Engine 5 | . 12 . . . 2 Core 5 | . . 9 10 9 5 Wheel 4 | . 9 . . . 5 Flight 14 | . 6 20 20 25 19 Device 25 | . 24 29 30 21 18 Processor 9 | . 7 10 9 9 12 Protection 1 | . . . . 5 8 Energy Gun 15 | . 23 19 6 . . Energy Cannon 2 | . . . 6 9 8 Launcher 4 | . 1 10 10 3 1 Naked Turns . | . . . . . . Heaviest Build 41 | 7 17 18 28 40 41 Greatest Support 33 | 16 16 15 15 20 33 Greatest Overweight (x) 2 | . 2 1 1 1 2 Average Overweight (x) . | . . . 1 1 1 Largest Inventory Capacity 3 | 2 3 3 3 3 3 Average Capacity 2 | 1 2 3 3 3 3 Most Carried 3 | 2 3 3 3 3 3 Average Carried 2 | . 1 2 2 2 2 Final Capacity 3 | 2 3 3 3 3 3 Final Carried 3 | 2 3 3 3 3 3 Class Distribution -------------------- 42% | Mutant 34% | Skirmisher 7% | Scavenger-Mutant 7% | Scout 3% | Hacker-Skirmisher 3% | Scavenger-Skirmisher Dominant Class ---------------- Mutant | -10/Materials Skirmisher | -10/Mines Scavenger-Mutant | -10/Exiles Mutant | -9/Mines Skirmisher | -8/Materials Resources | -11 -10 -10 -10 -9 -8 ----------- Run | Jun Mat Min Exi Min Mat Matter Collected 992 | 250 463 147 . 80 52 Remotely . | . . . . . . Salvage Created 1720 | 82 873 121 . 160 484 Parts 129 | 5 81 9 . 6 28 Haulers Intercepted 2 | . 2 . . . . Recyclers Shooed . | . . . . . . Parts Field Recycled . | . . . . . . Retrieved Matter . | . . . . . . Parts Self-Destructed . | . . . . . . Prevented . | . . . . . . Kills | -11 -10 -10 -10 -9 -8 ------- Run | Jun Mat Min Exi Min Mat Combat Hostiles Destroyed 48 | . 23 10 . 7 8 Guns 14 | . 9 5 . . . Cannons 4 | . . . . 2 2 AOE 28 | . 13 5 . 4 6 Classes Destroyed 13 | 2 6 2 . 1 2 Worker 2 | . 1 . . . 1 Builder 8 | . 4 . . . 4 Tunneler 1 | 1 . . . . . Hauler 2 | . 2 . . . . Recycler 2 | 1 . . . . 1 Watcher 4 | . 3 . . . 1 Swarmer 6 | . 3 . . 3 . Grunt 28 | . 20 2 . 2 4 Protector 1 | . . . . . 1 Sentry 3 | . . . . 2 1 Demolisher 1 | . . 1 . . . Hunter 2 | . . . . . 2 Assembled 7 | . . 7 . . . Best Kill Streak 7 | 1 6 7 . 3 7 Combat Bots Only 7 | . 5 7 . 3 6 Max Kills in Single Turn 3 | 1 3 3 . 3 3 Gunslinging . | . . . . . . Exploded 3 | . 2 3 . 2 2 Melee . | . . . . . . Uniques/NPCs Destroyed . | . . . . . . Combat | -11 -10 -10 -10 -9 -8 -------- Run | Jun Mat Min Exi Min Mat Damage Taken 1872 | . 965 400 . 18 489 Core 1437 | . 795 325 . 13 304 Absorbed by Shields . | . . . . . . Redirected to Core 1170 | . 596 257 . 13 304 Core Remaining (%) 73 | 100 . . . 47 . Volleys Fired 200 | 5 157 18 . 5 15 Largest 3 | 1 3 2 . 2 1 Hottest 135 | 40 135 90 . 130 100 Shots Fired 296 | 5 242 28 . 6 15 Gun 241 | 5 213 23 . . . Cannon 19 | . . . . 4 15 Launcher 36 | . 29 5 . 2 . Special . | . . . . . . Kinetic . | . . . . . . Thermal 19 | . . . . 4 15 Explosive 36 | . 29 5 . 2 . Electromagnetic 241 | 5 213 23 . . . Robot Hit Streak 27 | 2 15 27 . 8 9 Robot Miss Streak 4 | 1 4 2 . . 1 Penetration Max . | . . . . . . Secondary Targets 4 | . 3 1 . . . Max Gunslinging Chain 1 | . 1 1 . . . Shots Hit Robots 108 | 3 81 17 . 3 4 Core Hits 92 | 2 47 24 . 5 14 Critical Kills 1 | . . . . 1 . Critical Parts Destroyed . | . . . . . . Critical Strikes 4 | . 3 . . 1 . Meltdown 1 | . . . . 1 . Corrupt 3 | . 3 . . . . Melee Attacks . | . . . . . . Impact . | . . . . . . Slashing . | . . . . . . Piercing . | . . . . . . Sneak Attacks . | . . . . . . Combat Hostiles . | . . . . . . Follow-up Attacks . | . . . . . . Damage Inflicted 5440 | 114 2171 560 . 915 1680 Guns 1320 | 41 1054 225 . . . Cannons 1203 | . . . . 536 667 Explosions 2917 | 73 1117 335 . 379 1013 Melee . | . . . . . . Ramming . | . . . . . . Kinetic . | . . . . . . Thermal 3234 | 73 597 . . 884 1680 Explosive 763 | . 397 335 . 31 . Electromagnetic 1443 | 41 1177 225 . . . Impact . | . . . . . . Slashing . | . . . . . . Piercing . | . . . . . . Highest Corruption 2 | . . . . . 2 Average Corruption 1 | . . . . . 1 Corruption Purged . | . . . . . . Corruption Blocked . | . . . . . . Effects 1 | . . . . . 1 Matter Fused 1 | . . . . . 1 Overload Shots . | . . . . . . Overflow Damage 446 | . 56 25 . 235 130 Projectiles 344 | . . . . 235 109 Explosions 102 | . 56 25 . . 21 Melee . | . . . . . . Knockbacks . | . . . . . . Impact . | . . . . . . Kinetic . | . . . . . . Secondary . | . . . . . . Self-Inflicted Damage 308 | . 226 . . . 82 Shots 8 | . 6 . . . 2 Rammed . | . . . . . . Targets Rammed . | . . . . . . Kicked . | . . . . . . Crushed . | . . . . . . Highest Temperature 234 | . 234 72 . 36 145 Average Temperature 37 | . 41 25 . 17 40 Received Heat Transfer 513 | . 387 18 . . 108 Siege Activations . | . . . . . . Robots Corrupted 1 | . 1 . . . . Combat Hostiles 1 | . 1 . . . . Parts Fried 4 | . 4 . . . . Impact Corruptions . | . . . . . . Robots Melted 1 | . . . . 1 . Combat Hostiles 1 | . . . . 1 . Parts Melted 4 | . . . . 1 3 Heat Transferred 3050 | 100 650 . . 720 1580 Parts Sabotaged . | . . . . . . Parts Stolen . | . . . . . . Parts Stripped . | . . . . . . Power Chain Reactions 10 | 1 9 . . . . Missiles Intercepted . | . . . . . . Alert | -11 -10 -10 -10 -9 -8 ------- Run | Jun Mat Min Exi Min Mat Peak Influence 866 | 10 866 430 . 263 726 Initial 337 | . 6 337 . . 24 Average 335 | 7 446 328 . 141 233 Maximum Alert Level 3 | . 3 2 . 1 3 Low Security (%) 27 | 100 16 1 . 63 63 Level 1 37 | . 34 59 . 36 15 Level 2 24 | . 28 39 . . 16 Level 3 10 | . 21 . . . 5 Level 4 . | . . . . . . Level 5 . | . . . . . . High Security . | . . . . . . Max Security . | . . . . . . Squads Dispatched 11 | . 6 . . . 5 Investigation 9 | . 6 . . . 3 Extermination . | . . . . . . Reinforcement 1 | . . . . . 1 Assault 1 | . . . . . 1 Garrison . | . . . . . . Intercept . | . . . . . . Searches Triggered . | . . . . . . Construction Impeded . | . . . . . . Haulers Reinforced . | . . . . . . Active Scanning Responses . | . . . . . . Cargo Convoy Interrupts . | . . . . . . Stealth | -11 -10 -10 -10 -9 -8 --------- Run | Jun Mat Min Exi Min Mat Distress Signals 1 | . 1 . . . . Communications Jammed . | . . . . . . Distress Signals . | . . . . . . Times Spotted 63 | . 29 15 . 7 12 Peak Tracking Total 14 | . 5 14 . 3 6 Tactical Retreats 2 | . 1 1 . . . Traps | -11 -10 -10 -10 -9 -8 ------- Run | Jun Mat Min Exi Min Mat Traps Triggered 3 | . 1 . . . 2 Indirectly . | . . . . . . Trap Hack Attempts . | . . . . . . Triggered . | . . . . . . Disarmed . | . . . . . . Reprogrammed 5 | . 5 . . . . Reused . | . . . . . . Traps Extracted . | . . . . . . Installed . | . . . . . . Triggered . | . . . . . . Machines | -11 -10 -10 -10 -9 -8 ---------- Run | Jun Mat Min Exi Min Mat Machines Disabled 44 | . 30 2 . 3 9 Max in Single Turn 3 | . 3 1 . 2 1 Garrison Access 1 | . . . . . 1 Machines Repaired 1 | . 1 . . . . Machines Sabotaged . | . . . . . . Overloaded Fab Kills . | . . . . . . Hacking | -11 -10 -10 -10 -9 -8 --------- Run | Jun Mat Min Exi Min Mat Machines Accessed 18 | . 10 . 1 1 6 Terminals 14 | . 8 . . 1 5 Fabricators . | . . . . . . Repair Stations . | . . . . . . Recycling Units 3 | . 2 . . . 1 Scanalyzers . | . . . . . . Garrison Access . | . . . . . . Total Hacks 69 | . 46 . 1 4 18 Successful 40 | . 26 . 1 2 11 Failed 29 | . 20 . . 2 7 Catastrophic 3 | . 2 . . . 1 Database Lockouts . | . . . . . . Manual 23 | . 13 . 1 2 7 Terminals 61 | . 41 . . 4 16 Fabricators . | . . . . . . Repair Stations . | . . . . . . Recycling Units 7 | . 5 . . . 2 Scanalyzers . | . . . . . . Garrison Access . | . . . . . . Terminal Hacks 28 | . 18 . 1 2 7 Robot Analysis 5 | . 3 . . 1 1 Prototype ID Bank 5 | . 3 . . . 2 Branch Access Points 2 | . 1 . . . 1 Emergency Access Points 3 | . 2 . . . 1 Alert Level 1 | . 1 . . . . Unreport Threat 2 | . 2 . . . . Locate Traps 1 | . 1 . . . . Reprogram Traps 1 | . 1 . . . . Hauler Manifests 3 | . 2 . . . 1 Registered Components 1 | . 1 . . . . Registered Prototypes 1 | . 1 . . . . Zone Layout 2 | . . . . 1 1 EX-Prototype ID Bank 1 | . . . 1 . . Fabricator Hacks . | . . . . . . Repair Station Hacks . | . . . . . . Recycling Unit Hacks 4 | . 3 . . . 1 Report Inventory 3 | . 2 . . . 1 Retrieve Components 1 | . 1 . . . . Scanalyzer . | . . . . . . Garrison Access Hacks . | . . . . . . Unauthorized Hacks 8 | . 5 . . . 3 Terminals 6 | . 4 . . . 2 Botnet 4 | . 2 . . . 2 Detonate 1 | . 1 . . . . Sabotage 1 | . 1 . . . . Fabricators . | . . . . . . Repair Stations . | . . . . . . Recycling Units 2 | . 1 . . . 1 Tunnel 2 | . 1 . . . 1 Scanalyzers . | . . . . . . Garrison Access . | . . . . . . Data Cores Recovered . | . . . . . . Used . | . . . . . . Hacking Detections 14 | . 9 . . 1 4 Full Trace Events 8 | . 5 . . . 3 Feedback Events . | . . . . . . Feedback Blocked . | . . . . . . Robot Schematics Acquired . | . . . . . . Robots Built . | . . . . . . Authchips . | . . . . . . Time . | . . . . . . Total Robot Build Rating . | . . . . . . Part Schematics Acquired . | . . . . . . Parts Built . | . . . . . . Authchips . | . . . . . . Time . | . . . . . . Total Part Build Rating . | . . . . . . Parts Repaired . | . . . . . . Time . | . . . . . . Parts Recycled . | . . . . . . Recycled Matter . | . . . . . . Retrieved Matter . | . . . . . . Retrieved Components 5 | . 5 . . . . Parts Scanalyzed . | . . . . . . Part Schematics Acquired . | . . . . . . Parts Damaged . | . . . . . . Bothacking | -11 -10 -10 -10 -9 -8 ------------ Run | Jun Mat Min Exi Min Mat Used RIF Installer . | . . . . . . Robots Hacked . | . . . . . . Non-combat . | . . . . . . Combat . | . . . . . . Robot Hacks Applied . | . . . . . . Relay Couplers Released 1 | . . . . . 1 Machine Destruction 1 | . . . . . 1 Fabnet Peak Effective % . | . . . . . . Robots Rewired . | . . . . . . Allies Hacked . | . . . . . . Hacks Repelled . | . . . . . . Allies | -11 -10 -10 -10 -9 -8 -------- Run | Jun Mat Min Exi Min Mat Total Allies . | . . . . . . Largest Group . | . . . . . . Highest-Rated Group . | . . . . . . Highest-Rated Ally . | . . . . . . Total Orders . | . . . . . . Ally Attacks . | . . . . . . Total Damage . | . . . . . . Kills . | . . . . . . Allies Corrupted . | . . . . . . Allies Melted . | . . . . . . Intel | -11 -10 -10 -10 -9 -8 ------- Run | Jun Mat Min Exi Min Mat Robot Analysis Total 5 | . 3 . . 1 1 Derelict Logs Recovered 4 | . . 2 . 2 . Drone Launches . | . . . . . . Drone Recoveries . | . . . . . . Exploration | -11 -10 -10 -10 -9 -8 ------------- Run | Jun Mat Min Exi Min Mat Turns Passed 3836 | 118 1598 809 433 479 399 Spaces Moved 3137 | 87 1276 695 396 423 260 Core 4 | 4 . . . . . Treads . | . . . . . . Legs . | . . . . . . Wheels 912 | 83 672 . . . 157 Hover . | . . . . . . Flight 2221 | . 604 695 396 423 103 Fastest Speed 37 | 50 37 37 107 104 104 Average Speed 92 | 97 73 105 107 104 108 Slowest Speed 180 | 100 180 107 107 107 120 Overloaded Moves . | . . . . . . Propulsion Burnouts . | . . . . . . Robots Hopped 1 | . 1 . . . . Cave-ins Triggered . | . . . . . . Exploration Rate (%) 70 | 5 99 99 89 96 33 Regions Visited 5 Branch Regions 3 Pre-discovered Areas 3 | . 1 1 . . 1 Known Exits Taken 2 | . 1 1 . . . Unknown Exits Taken 3 | 1 . . 1 1 . Scrap Searched 3 | . . 1 . 2 . Spaces Dug . | . . . . . . Terrain Destroyed 500 | 2 308 25 . 38 127 Melee . | . . . . . . Projectile 8 | . . . . . 8 AOE 492 | 2 308 25 . 38 119 Terrain Rammed . | . . . . . . Walls Destroyed . | . . . . . . Machines Disabled . | . . . . . . Actions | -11 -10 -10 -10 -9 -8 --------- Run | Jun Mat Min Exi Min Mat Total 3729 | 113 1688 741 407 446 334 Wait 259 | 13 175 12 . 11 48 Move 3130 | 86 1273 694 395 422 260 Hop 1 | . 1 . . . . Pick Up 22 | 3 11 3 4 1 . Fast Attach 26 | 4 12 2 1 2 5 Attach 11 | 1 4 2 1 2 1 Detach 4 | . 1 1 . 1 1 Swap 7 | . 6 1 . . . Drop 32 | 1 15 4 6 2 4 Fire 200 | 5 157 18 . 5 15 Melee . | . . . . . . Ram . | . . . . . . Kick . | . . . . . . Crush . | . . . . . . Escape Stasis . | . . . . . . Rewire . | . . . . . . Trap . | . . . . . . Miscellaneous 37 | . 33 4 . . . Route ------- -11/Junkyard -10/Materials (discovered 5 exits: *Mat x3 / *Min x2) -10/Mines (discovered 3 exits: *Mat x2 / *Exi) -10/Exiles -9/Mines (discovered 2 exits: *Mat x2) -8/Materials (discovered 1 exit: Fac) History --------- Turn | Location | Event 2 | -11/Junkyard | Met Revision 17 13 | -11/Junkyard | Discovered new exit (range 16) 28 | -11/Junkyard | Upgraded with Weapon slot (x1) 56 | -11/Junkyard | Upgraded with Utility slot (x2) 119 | -11/Junkyard | Entered Materials 307 | -10/Materials | Discovered new exit (range 13) 309 | -10/Materials | Build established: Mutant 389 | -10/Materials | Core integrity fell below 50% 488 | -10/Materials | Reached level 2 642 | -10/Materials | Discovered new exit (range 16) 711 | -10/Materials | Discovered new exit (range 9) 731 | -10/Materials | Reached level 3 877 | -10/Materials | Discovered new exit (range 15) 1027 | -10/Materials | Build established: Skirmisher 1095 | -10/Materials | Identified exit to Mines 1215 | -10/Materials | Reached level 4 1217 | -10/Materials | Upgraded with Propulsion slot (x1) 1217 | -10/Materials | Upgraded with Utility slot (x1) 1397 | -10/Materials | Discovered new exit (range 10) 1460 | -10/Materials | Reached level 5 1463 | -10/Materials | Upgraded with Weapon slot (x1) 1508 | -10/Materials | Build established: Scout 1717 | -10/Materials | Entered Mines 1782 | -10/Mines | Found a damaged Exp. Sensor Array with a note attached 1784 | -10/Mines | Found Prototype Device 1784 | -10/Mines | Identified Exp. Sensor Array 1892 | -10/Mines | Assembled infested the area 1917 | -10/Mines | Met 8R-AWN 1931 | -10/Mines | Destroyed 7 combat bots 1957 | -10/Mines | Learned Materials stockpile data 2008 | -10/Mines | Discovered new exit (range 5) 2011 | -10/Mines | Identified exit to Exiles 2035 | -10/Mines | Discovered new exit (range 10) 2062 | -10/Mines | Discovered new exit (range 12) 2073 | -10/Mines | Identified exit to Materials 2211 | -10/Mines | Build established: Skirmisher 2281 | -10/Mines | Learned location of Mines (-9) 2513 | -10/Mines | Build established: Mutant 2526 | -10/Mines | Entered Exiles 2552 | -10/Exiles | Welcomed by 8R-AWN 2570 | -10/Exiles | Met EX-HEX 2602 | -10/Exiles | Met EX-BIN 2615 | -10/Exiles | Aligned with FarCom system 2616 | -10/Exiles | Given EX-Vault access code 2641 | -10/Exiles | Opened EX-Vault 2649 | -10/Exiles | Found Field Lobotomy Kit 2654 | -10/Exiles | Found YOLO Cannon 2676 | -10/Exiles | Warned to stay clear of 0b10 Research branches 2706 | -10/Exiles | Found Chronowheel 2769 | -10/Exiles | Met EX-DEC 2810 | -10/Exiles | Visited The Gauntlet 2949 | -10/Exiles | Discovered new exit (range 11) 2959 | -10/Exiles | Stole three prototypes: YOLO Cannon, Chronowheel, Field Lobotomy Kit 2959 | -10/Exiles | Entered Mines 3032 | -9/Mines | Reached level 6 3040 | -9/Mines | Build established: Scavenger-Mutant 3051 | -9/Mines | Upgraded with Propulsion slot (x1) 3068 | -9/Mines | Learned location of 1 exit from Materials 3259 | -9/Mines | Discovered new exit (range 11) 3408 | -9/Mines | Discovered new exit (range 17) 3419 | -9/Mines | Build established: Mutant 3438 | -9/Mines | Entered Materials 3439 | -8/Materials | Identified exit to Factory 3439 | -8/Materials | Core integrity fell below 50% 3440 | -8/Materials | Reached level 7 3441 | -8/Materials | Upgraded with Utility slot (x1) 3691 | -8/Materials | Reached level 8 3813 | -8/Materials | Reached level 9 3814 | -8/Materials | Core integrity fell below 20% 3837 | -8/Materials | Destroyed by L-31 Rogue with Katana Last Messages --------------- 03823_ K-01 Serf collects debris. 03823_ U-05 Engineer lays Concrete. 03826_ K-01 Serf collects debris. 03827_ U-05 Engineer lays Concrete. 03828_ Dropped Imp. Flight Unit. 03829_ Acquired Com. Wheel. 03829_ U-05 Engineer lays Concrete. 03829_ K-01 Serf collects debris. 03830_ Shock Bomb Launcher severed. 03830_ U-05 Engineer lays Concrete. 03830_ Acquired 11 matter. 03831_ U-05 Engineer builds a Wall. 03832_ U-05 Engineer lays Concrete. 03832_ Acquired 8 matter. 03833_ U-05 Engineer lays Concrete. 03834_ Acquired 3 matter. 03834_ U-05 Engineer lays Concrete. 03835_ G-47 Trooper destroyed. 03835_ U-05 Engineer builds a Wall. 03836_ K-01 Serf collects debris. Map ----- +----------------------------------------------------+ | ###"# ###### # ?? #???????????????????? | | # ""#+###### + ???? # ??????????????????? | | # " # #??"?"?#?"?????????????????? | | ### # # ?"""???"?????????????????? | | ### # "T" ############+??????????????? | | ### # """ ????????????? | | ### + ????????????? | | ### # ????????????? | | ### # #######/########+### ???????????????? | | ### # #?##! ##? ? ?#????????????????? | | ### # #### ## ? ?#????????????????? | | #?########## #### """ ## ????????????????????? | | ############ #### """""## ?"??? ??????????????? | | ############ #### """""##??"?"? ???????????????? | | #########?## #### "#? "???? ""????????????? | | ############ #### #? ?#? """"??????????? | | #?# """ # #?## #?###### """???????????? | | #?# "T" # #### ###??##? ???????????? | | ### " " # #################### ???? ??????? | | ### # ^ """"? ??????? | | #?# + """" ?????? | | ### """ # ^ """" ?????? | | #?# """ ######## """"""" ????? | | #?# """ *#[ # """"""" ????? | | ### # # "%%%%%" ????? | | ??########## == + %%%%@%%% ???? | | ???###?##### =! # %%%%l%% g t ???? | | ############ =! # =% = % % ???? | | #???#?###### + [%= *%g ]o ???? | | ?##?#####?#####" ##+# [ = ; ;;;;###?#????? | | ???###?####### # # = % ; "????? | | ?#???######### # u = k # """ "????? | | ???#???####### " % [ #??????????? | | ?#??#??####### #" = =%% #??????????? | | ??????###?#### #" = #?""? ?????? | | ????###?###### # " ## #??????????? | | ??###?#########";u " #### # ?????????? | | ??###?######### ; """ #?## #? ????????? | | ?????#??####### ###############?????????? | | ???????##?#### %% ########?#####??#?#?????????? | | ??????#?#?##?# [ ##?##?####?######???????????? | | ??#??##???#### ######?##?#?###?????????????? | | ??##???#?##### ############?#??????????????? | | | | | | | | | | | | | | | +----------------------------------------------------+ Best States ------------- Heat Dissipation 31 Energy Generation 14 Energy Capacity 275 Matter Stores 300 Matter Capacity 300 Sight Range 18 Robot Scan Range 20 Terrain Scan Range 16 Terrain Scan Density 210 ECM Strength 1 Armor Coverage 150 Evasion (%) 62 Targeting Accuracy 8 Launcher Accuracy 20 Offensive Hacking 15 Defensive Hacking 10 Item Schematics ----------------- None Robot Schematics ------------------ None Fabricated ------------ Nothing Alien Tech Used ----------------- None Achievements -------------- None Challenges ------------ None RPGLIKE | -11 -10 -10 -10 -9 -8 --------- Run | Jun Mat Min Exi Min Mat Levels Raised 8 | . 4 . . 1 3 XP Earned 15564 | 3000 6011 699 243 1525 4086 XP Spent 13390 | 2890 6100 . . 1500 2900 Upgrades 28 | 8 13 . . 3 4 Propulsion Slot 2 | . 1 . . 1 . Utility Slot 4 | 2 1 . . . 1 Weapon Slot 2 | 1 1 . . . . Heat Dissipation 1 | . 1 . . . . Mass Support 1 | . 1 . . . . Inventory Capacity 3 | 2 1 . . . . Sight Range 2 | . 2 . . . . Terrain Scan Density 2 | 2 . . . . . Ranged Accuracy 4 | . 4 . . . . Hack Attack % 3 | . 1 . . . 2 Hack Defense % 2 | 1 . . . . 1 TH Damage % 2 | . . . . 2 . Protomatter Created 500 | . 350 55 . 27 68 Integrity Restored 818 | . 738 80 . . . Core 818 | . 738 80 . . . Protomatter Decayed 48 | . 2 46 . . . Game ------ Seed BackupCoordinationComputer Manual? 0 Play Time 00:49:40 Cumulative 355.2 hours Start 2023.02.22 @ 13:29:14 End 2023.02.22 @ 14:50:40 Sessions 1 Manual Loads 0 Difficulty Rogue Special Mode Winter2019/RPGLIKE Game No. 417 Rogue 417 Adventurer 0 Explorer 0 Win Type - Total 0 Types 0/0/0/0/0/0/0/0/0 Lore% 50 Gallery% 74 Achievement% 61 Wizard Run 0 Options --------- ASCII 0 Keyboard 0 Movement Mouse Keybinds 0 Fullscreen 2 Font 24/Smallcaps Map View 76x50 Tactical HUD 1 Map Filters NONE Filters NONE Steam 1 RUN: 02c2fd40-89a3-4dd4-87b5-0a9f89b29b75